bitfinex/quotes_SOLUSD_20241007
["timestamp","ask_amount","ask_price","bid_price","bid_amount"]
[1728343433154,6.8868,145.21,145.18,50.0]
[1728343433353,17.2119,145.25,145.19,1.37721707]
[1728343433655,17.2119,145.25,145.18,50.0]
[1728343433858,6.886,145.23,145.19,6.8874]
[1728343434458,6.8861,145.22,145.18,56.8878]
[1728343435381,6.8861,145.22,145.18,50.0]
[1728343436578,6.8861,145.22,145.18,56.8879]
[1728343438060,6.887,145.2,145.17,79.74878701]
[1728343438879,17.2119,145.25,145.17,86.63718701]
[1728343439183,5.63978672,145.24,145.17,86.63718701]
[1728343439383,6.8869,145.21,145.17,86.63718701]
[1728343439883,6.887,145.2,145.17,70.16584839]
[1728343440560,6.8866,145.21,145.17,78.08759935]
[1728343441288,6.8866,145.21,145.17,77.05414839]
[1728343441779,17.2119,145.25,145.16,64.0823653]
[1728343441780,6.8873,145.2,145.16,64.0823653]
[1728343442155,6.8873,145.2,145.17,1.37735211]
[1728343443180,6.8867,145.21,145.17,8.26575211]
[1728343444486,16.1537,145.24,145.18,50.0]
[1728343444662,6.8862,145.22,145.18,56.8879]
[1728343446577,16.1537,145.24,145.2,50.0]
[1728343446785,6.8861,145.22,145.18,74.1076]
[1728343446967,6.8871,145.2,145.18,50.0]
[1728343447381,33.3667,145.24,145.18,50.0]
[1728343447674,6.8867,145.21,145.18,50.0]
[1728343448872,6.8867,145.21,145.19,1.37729367]
[1728343449368,6.8867,145.21,145.18,50.0]
[1728343449693,6.8859,145.23,145.19,8.26469498]
[1728343449984,23.0391,145.24,145.2,56.887]
[1728343450158,12.54229821,145.23,145.2,56.887]
[1728343450358,6.8856,145.23,145.2,56.887]
[1728343450879,23.0389,145.24,145.21,1.37705193]
[1728343451077,16.1537,145.24,145.21,1.37705193]
[1728343451272,6.8856,145.23,145.19,24.1059]
[1728343451475,6.8856,145.23,145.2,50.0]
[1728343451790,6.8856,145.23,145.19,24.1059]
[1728343452660,6.8861,145.22,145.19,24.1061]
[1728343453462,6.8861,145.22,145.19,17.2186]
[1728343455284,16.1537,145.24,145.2,51.37717302]
[1728343455494,6.8859,145.23,145.2,51.37717302]
[1728343456681,16.1537,145.24,145.2,51.37717302]
[1728343456991,6.8847,145.25,145.21,6.8861]
[1728343457191,6.1807,145.26,145.22,51.37686559]
[1728343457368,15.6586,145.28,145.24,50.0]
[1728343457369,6.8839,145.27,145.24,50.0]
[1728343457679,5.65735585,145.26,145.25,1.3766934]
[1728343457983,5.65735585,145.26,145.24,50.0]
[1728343457984,22.542,145.28,145.24,56.8851]
[1728343458191,5.65877519,145.27,145.24,56.8851]
[1728343458390,15.6586,145.28,145.22,50.0]
[1728343458594,15.6586,145.28,145.23,1.37679534]
[1728343458595,6.8844,145.26,145.23,1.37679534]
[1728343459395,6.884,145.27,145.23,6.8854]
[1728343459573,6.8843,145.26,145.22,74.1007]
[1728343460273,6.8852,145.24,145.21,9.58028501]
[1728343460474,15.6586,145.28,145.22,50.0]
[1728343460675,15.6586,145.28,145.21,16.46678501]
[1728343460676,6.8848,145.25,145.21,16.46678501]
[1728343460886,6.886,145.23,145.21,8.54708775]
[1728343461095,6.8857,145.23,145.2,50.0]
[1728343461267,6.8853,145.24,145.2,50.0]
[1728343461561,6.8846,145.25,145.21,8.26325616]
[1728343464068,6.8846,145.25,145.22,50.0]
[1728343470303,6.8846,145.25,145.23,1.37686336]
[1728343470998,6.8846,145.25,145.22,50.0]
[1728343473700,15.6586,145.28,145.2,50.0]
[1728343473876,6.8865,145.21,145.2,50.0]
[1728343474080,6.8875,145.19,145.15,56.9092]
[1728343474277,6.888,145.18,145.15,50.02]
[1728343475009,6.8872,145.2,145.16,1.37748405]
[1728343475182,6.4931,145.21,145.16,1.37748405]
[1728343475183,6.8875,145.19,145.16,1.37748405]
[1728343475375,6.8875,145.19,145.15,77.89198419]
[1728343475581,6.8871,145.2,145.16,8.2660496]
[1728343476080,6.8871,145.2,145.16,6.8886]
[1728343476302,6.8875,145.19,145.15,77.89178419]
[1728343477041,6.8872,145.2,145.15,77.89178419]
[1728343477307,6.888,145.18,145.15,69.96896345]
[1728343477512,6.888,145.18,145.15,62.77592054]
[1728343478208,0.12549,145.2,145.15,0.02]
[1728343478397,6.8888,145.17,145.15,0.02]
[1728343478809,6.8881,145.18,145.15,0.02]
[1728343478982,6.8881,145.18,145.16,1.37758386]
[1728343479382,6.4931,145.21,145.16,51.37758386]
[1728343479604,12.54447795,145.2,145.16,58.26648386]
[1728343479909,6.8871,145.2,145.16,58.26648386]
[1728343480209,6.8876,145.19,145.16,50.0]
[1728343480394,6.8876,145.19,145.17,1.3774792]
[1728343481198,6.8876,145.19,145.16,50.0]
[1728343484118,6.4931,145.21,145.17,1.37742883]
[1728343484488,13.3797,145.21,145.17,8.26552883]
[1728343484886,13.1603,145.24,145.2,6.8869]
[1728343485191,6.2748,145.24,145.17,56.888]
[1728343485397,6.8866,145.21,145.18,1.03339125]
[1728343485611,6.8866,145.21,145.19,1.37725606]
[1728343486610,6.8861,145.22,145.19,50.0]
[1728343499193,6.8861,145.22,145.2,1.37716166]
[1728343499496,6.8861,145.22,145.19,50.0]
[1728343500515,6.8861,145.22,145.2,1.37715573]
[1728343500717,6.8857,145.23,145.2,1.37715573]
[1728343500928,16.6031,145.26,145.2,12.75592054]
[1728343501092,16.6031,145.26,145.19,50.0]
[1728343501433,6.8861,145.22,145.19,50.0]
[1728343507084,33.8136,145.26,145.21,50.0]
[1728343507345,16.6031,145.26,145.22,1.37694327]
[1728343507514,6.8852,145.24,145.22,1.37694327]
[1728343507851,5.66190882,145.23,145.22,1.37694327]
[1728343508409,12.54750882,145.23,145.21,50.0]
[1728343508613,6.8856,145.23,145.21,50.0]
[1728343509411,23.4877,145.26,145.22,8.26296401]
[1728343509727,5.66279785,145.25,145.22,8.26296401]
[1728343509920,5.66279785,145.24,145.22,8.26296401]
[1728343510127,23.4877,145.26,145.22,8.26296401]
[1728343510446,12.54640545,145.25,145.21,56.8864]
[1728343510742,5.66180545,145.24,145.21,56.8864]
[1728343510949,6.8846,145.25,145.21,56.8864]
[1728343511114,5.66183956,145.24,145.21,56.8864]
[1728343511310,6.8846,145.25,145.21,56.8864]
[1728343511539,5.66216235,145.24,145.21,56.8864]
[1728343511713,6.8846,145.25,145.21,56.8864]
[1728343511914,5.66216235,145.24,145.21,56.8864]
[1728343512147,6.8846,145.25,145.21,56.8864]
[1728343512438,5.66243655,145.24,145.23,50.0]
[1728343512940,6.8843,145.26,145.23,50.0]
[1728343513144,5.66306929,145.25,145.24,1.37678824]
[1728343513716,6.8843,145.26,145.24,1.37678824]
[1728343515123,6.3011,145.28,145.24,1.37678824]
[1728343515445,5.6618043,145.27,145.23,50.0]
[1728343515743,6.8848,145.25,145.23,50.0]
[1728343516530,6.8842,145.26,145.24,1.37681518]
[1728343516815,15.8255,145.29,145.25,50.0]
[1728343517048,6.8837,145.27,145.25,50.0]
[1728343517546,6.8837,145.27,145.26,1.37663737]
[1728343519232,6.8851,145.24,145.21,65.43314729]
[1728343519438,6.8851,145.24,145.21,58.54664729]
[1728343519740,17.212,145.25,145.19,50.0]
[1728343519950,6.8857,145.23,145.19,56.8875]
[1728343520240,17.212,145.25,145.18,8.54869256]
[1728343520616,6.8866,145.21,145.18,8.54869256]
[1728343521342,6.8862,145.22,145.19,51.3772677]
[1728343521546,17.212,145.25,145.19,51.3772677]
[1728343521547,6.8859,145.23,145.19,50.0]
[1728343522334,6.8859,145.23,145.2,1.37708748]
[1728343522540,6.8852,145.24,145.2,8.26408748]
[1728343523023,6.8852,145.24,145.2,1.37708748]
[1728343523623,6.8856,145.23,145.2,1.37708748]
[1728343523823,6.8856,145.23,145.19,56.8873]
[1728343524540,6.885,145.25,145.21,56.8865]
[1728343525346,6.885,145.25,145.21,50.0]
[1728343526647,6.885,145.25,145.21,56.8865]
[1728343528148,15.8255,145.29,145.23,50.0]
[1728343528330,15.8255,145.29,145.25,56.8846]
[1728343528331,9.06123798,145.28,145.25,56.8846]
[1728343528537,22.7086,145.29,145.26,1.37661913]
[1728343528846,9.06284056,145.28,145.26,1.37661913]
[1728343529040,22.7086,145.29,145.26,1.37661913]
[1728343529440,6.8833,145.28,145.26,1.37661913]
[1728343530453,15.8255,145.29,145.26,1.37661913]
[1728343530651,34.3856,145.41,145.27,58.26022881]
[1728343530652,6.8818,145.32,145.27,58.26022881]
[1728343530949,15.036,145.33,145.29,56.8823]
[1728343530950,9.06544903,145.31,145.29,56.8823]
[1728343531247,6.881,145.33,145.29,56.8823]
[1728343531449,9.06024252,145.32,145.29,56.8823]
[1728343531637,6.881,145.33,145.29,56.8823]
[1728343532232,0.12549,145.34,145.27,67.2091]
[1728343532432,6.8824,145.3,145.27,67.2091]
[1728343532737,23.3364,145.35,145.28,8.54286297]
[1728343532738,6.8819,145.31,145.28,8.54286297]
[1728343533056,6.8824,145.3,145.28,8.54286297]
[1728343533232,6.8824,145.3,145.28,9.57554952]
[1728343533732,6.8819,145.31,145.28,10.95187679]
[1728343534038,6.8814,145.32,145.29,51.37629507]
[1728343535737,15.036,145.37,145.31,50.0]
[1728343535926,6.8807,145.34,145.31,50.0]
[1728343536347,15.036,145.37,145.29,50.0]
[1728343536551,6.8814,145.32,145.29,50.0]
[1728343536835,17.2012,145.34,145.28,9.57554952]
[1728343537037,6.8824,145.3,145.28,8.54286297]
[1728343537531,6.8827,145.29,145.28,8.54286297]
[1728343537726,6.8824,145.3,145.28,8.54286297]
[1728343538451,6.8824,145.3,145.28,9.91922694]
[1728343538826,17.2012,145.34,145.28,9.91922694]
[1728343539032,6.8809,145.33,145.29,56.8827]
[1728343539233,6.8809,145.33,145.29,50.0]
[1728343540349,6.8805,145.34,145.31,50.0]
[1728343549860,32.2344,145.37,145.31,50.0]
[1728343550058,6.8809,145.33,145.31,50.0]
[1728343550269,32.2344,145.37,145.31,50.0]
[1728343550567,6.8807,145.34,145.31,50.0]
[1728343550743,6.8807,145.34,145.32,1.37600821]
[1728343552965,6.8807,145.34,145.31,50.0]
[1728343562684,6.8813,145.32,145.29,68.23933448]
[1728343562847,6.8818,145.31,145.28,8.54286297]
[1728343564972,6.8818,145.31,145.29,50.0]
[1728343565163,6.8818,145.31,145.29,51.37626464]
[1728343565869,17.1999,145.35,145.29,51.37626464]
[1728343566077,6.8815,145.32,145.29,51.37626464]
[1728343567775,17.1999,145.35,145.29,51.37626464]
[1728343568084,17.1999,145.35,145.19,7.19222875]
[1728343568085,6.8823,145.3,145.25,67.2107]
[1728343568266,6.8842,145.26,145.23,50.0]
[1728343568580,6.8838,145.27,145.23,56.8855]
[1728343570161,17.2059,145.3,145.25,50.0]
[1728343570382,16.446,145.31,145.26,1.37661344]
[1728343570574,6.8829,145.29,145.26,1.37661344]
[1728343572183,6.8833,145.28,145.25,58.5448128]
[1728343572389,6.8838,145.27,145.25,8.5448128]
[1728343573378,6.8842,145.26,145.25,8.5448128]
[1728343574481,6.2282,145.27,145.22,0.02]
[1728343574685,6.8856,145.23,145.22,0.02]
[1728343575387,15.0363,145.26,145.22,0.02]
[1728343575567,6.8854,145.24,145.22,0.02]
[1728343575767,6.8847,145.25,145.22,0.02]
[1728343575967,6.8847,145.25,145.22,1.3969262]
[1728343576268,6.8852,145.24,145.22,0.02]
[1728343576482,15.0363,145.26,145.22,0.02]
[1728343577883,6.8856,145.23,145.22,0.02]
[1728343579584,17.2129,145.24,145.18,8.54869256]
[1728343579763,6.8875,145.19,145.18,8.54869256]
[1728343581072,22.5108,145.2,145.18,8.54869256]
[1728343581266,6.8871,145.2,145.18,8.54869256]
[1728343584473,6.5403,145.21,145.14,6.8897]
[1728343584674,6.8882,145.18,145.14,6.8897]
[1728343584893,6.8884,145.17,145.13,56.8902]
[1728343585791,6.8881,145.18,145.14,8.2674948]
[1728343585993,6.8881,145.18,145.15,50.0]
[1728343586164,6.8881,145.18,145.16,1.37756145]
[1728343586370,6.8881,145.18,145.15,50.0]
[1728343587068,6.8881,145.18,145.16,1.37756284]
[1728343588795,6.8881,145.18,145.15,50.0]
[1728343589476,6.8897,145.15,145.12,7.21289456]
[1728343589700,6.8897,145.15,145.11,110.65468049]
[1728343590801,17.2214,145.17,145.11,103.76388049]
[1728343590983,6.89,145.14,145.11,103.76388049]
[1728343591795,6.89,145.14,145.12,7.19447027]
[1728343591993,6.89,145.14,145.11,50.8188321]
[1728343592194,6.8904,145.13,145.11,0.8188321]
[1728343592383,6.8904,145.13,145.11,8.01384556]
[1728343592577,6.8904,145.13,145.11,0.8188321]
[1728343593774,6.8908,145.12,145.11,0.8188321]
[1728343598687,7.01629,145.12,145.11,0.8188321]
[1728343599497,7.14178,145.12,145.11,0.8188321]
[1728343599681,7.01629,145.12,145.11,0.8188321]
[1728343599882,7.14178,145.12,145.11,0.8188321]
[1728343600083,7.01629,145.12,145.11,0.8188321]
[1728343604395,7.14178,145.12,145.11,0.8188321]
[1728343605211,30.918664,145.12,145.11,0.8188321]
[1728343605783,7.14178,145.12,145.11,0.8188321]
[1728343606508,6.8908,145.12,145.11,0.8188321]
[1728343607899,15.0823,145.14,145.11,0.8188321]
[1728343608096,21.9723,145.14,145.11,0.8188321]
[1728343608297,6.8905,145.13,145.11,0.8188321]
[1728343608600,6.8908,145.12,145.11,0.8188321]
[1728343609505,7.01629,145.12,145.11,0.8188321]
[1728343611204,15.9216,145.23,145.12,50.0]
[1728343611407,33.1362,145.23,145.12,67.2267]
[1728343611617,6.8881,145.18,145.13,6.8899]
[1728343611913,15.9216,145.23,145.12,67.2267]
[1728343612099,17.217,145.21,145.12,17.2267]
[1728343612409,6.8893,145.16,145.12,17.2267]
[1728343612612,6.8893,145.16,145.12,24.1173]
[1728343614394,0.12549,145.22,145.11,9.37167543]
[1728343614592,6.8894,145.16,145.11,9.37167543]
[1728343614806,6.8894,145.16,145.11,16.26277543]
[1728343615305,17.2195,145.19,145.11,9.37167543]
[1728343615614,6.89,145.14,145.11,9.37167543]
[1728343616616,6.8908,145.12,145.11,9.37167543]
[1728343616819,6.8908,145.12,145.11,0.8188321]
[1728343618499,15.1138,145.16,145.11,0.8188321]
[1728343618703,6.8895,145.15,145.11,0.8188321]
[1728343618898,15.1138,145.16,145.11,0.8188321]
[1728343619109,6.8908,145.12,145.11,0.8188321]
[1728343623410,6.8904,145.13,145.11,0.8188321]
[1728343624216,6.89,145.14,145.11,0.8188321]
[1728343624512,6.8908,145.12,145.11,0.8188321]
[1728343627435,7.01629,145.12,145.11,0.8188321]
[1728343628615,6.8908,145.12,145.11,0.8188321]
[1728343629514,7.01629,145.12,145.11,0.8188321]
[1728343629830,6.8908,145.12,145.11,0.8188321]
[1728343630534,7.01629,145.12,145.11,0.8188321]
[1728343633415,6.8908,145.12,145.11,0.8188321]
[1728343639427,30.918664,145.12,145.11,0.8188321]
[1728343639631,37.367264,145.12,145.11,0.8188321]
[1728343639840,52.672164,145.12,145.11,0.8188321]
[1728343642534,6.8908,145.12,145.11,0.8188321]
[1728343643924,7.14178,145.12,145.11,0.8188321]
[1728343644536,53.825664,145.12,145.11,0.8188321]
[1728343645252,53.825664,145.12,145.11,3.21e-05]
[1728343645475,6.8945,145.05,145.02,0.02]
[1728343646353,6.8946,145.04,145.02,0.02]
[1728343649457,6.8951,145.03,145.02,0.02]
[1728343650360,6.8961,145.01,144.99,7.19483176]
[1728343650658,6.8961,145.01,144.97,57.7367321]
[1728343651955,6.8952,145.03,144.99,6.8969]
[1728343652470,17.2357,145.05,144.97,75.27919903]
[1728343652758,17.2357,145.05,144.97,58.03449903]
[1728343652958,6.8968,145.0,144.97,58.03449903]
[1728343653258,6.8962,145.01,144.97,57.7367321]
[1728343653473,6.8965,145.0,144.97,0.8388321]
[1728343658434,6.8965,145.0,144.97,2.21821315]
[1728343658636,6.8971,144.99,144.97,0.8388321]
[1728343661368,6.8971,144.99,144.97,0.8188321]
[1728343663752,6.8967,145.0,144.97,0.8188321]
[1728343664563,17.2381,145.03,144.97,0.8188321]
[1728343664765,6.8961,145.01,144.97,57.7165321]
[1728343664967,6.8961,145.01,144.97,7.7165321]
[1728343665636,6.8961,145.01,144.97,57.7165321]
[1728343666366,6.8965,145.0,144.97,0.8188321]
[1728343668448,6.8961,145.01,144.97,7.7167321]
[1728343668858,6.8961,145.01,144.97,9.0959918]
[1728343669064,6.8952,145.03,144.99,6.897]
[1728343669247,6.8952,145.03,145.0,1.37914822]
[1728343669856,6.8944,145.05,145.01,6.8957]
[1728343670163,15.3688,145.06,145.0,24.1375]
[1728343670164,6.8949,145.04,145.0,24.1375]
[1728343670378,15.3688,145.06,145.04,6.8944]
[1728343670541,6.3057,145.09,145.02,17.2389]
[1728343670749,6.8944,145.05,145.02,17.2389]
[1728343671685,6.8938,145.06,145.02,24.1344]
[1728343673177,6.8946,145.04,145.0,6.8962]
[1728343674183,17.35759,145.08,144.99,33.8065]
[1728343674484,6.8954,145.03,144.99,40.7034]
[1728343675663,16.35238,145.05,144.97,0.8188321]
[1728343675864,6.8962,145.01,144.97,7.7167321]
[1728343679879,17.2368,145.04,144.97,0.8188321]
[1728343680074,16.22689,145.05,144.99,50.0]
[1728343680075,16.1014,145.05,144.99,50.0]
[1728343680276,6.8947,145.04,145.0,6.8962]
[1728343680472,6.8947,145.04,145.0,24.1375]
[1728343680857,22.996,145.05,145.01,8.27486207]
[1728343681266,6.8946,145.05,145.01,6.8959]
[1728343681477,15.9962,145.08,145.02,8.2744399]
[1728343681779,6.894,145.06,145.02,8.2744399]
[1728343682278,6.894,145.06,145.02,6.8955]
[1728343682579,6.894,145.06,145.03,1.37883599]
[1728343683272,6.894,145.06,145.02,24.1344]
[1728343683451,6.894,145.06,145.03,1.37878419]
[1728343684260,6.894,145.06,145.02,24.1344]
[1728343685061,6.894,145.06,145.03,1.37878826]
[1728343685281,6.894,145.06,145.02,24.1344]
[1728343685867,6.894,145.06,145.03,6.895]
[1728343686071,6.894,145.06,145.03,8.27375209]
[1728343686475,6.8945,145.05,145.01,17.2401]
[1728343686773,6.8939,145.06,145.02,6.8955]
[1728343687461,6.893,145.08,145.04,6.8946]
[1728343688664,6.8932,145.07,145.03,32.68983884]
[1728343689465,6.8931,145.08,145.04,6.8945]
[1728343690066,39.0063,145.11,145.04,50.0]
[1728343690367,6.8922,145.09,145.05,6.8939]
[1728343690762,39.0063,145.11,145.04,50.0]
[1728343690963,6.8928,145.08,145.04,56.8945]
[1728343691168,6.8928,145.08,145.04,6.8945]
[1728343691886,6.8942,145.05,145.03,8.55743884]
[1728343692193,6.8946,145.04,145.03,8.55743884]
[1728343696684,6.8959,145.02,144.98,22.65421702]
[1728343698395,6.896,145.01,144.98,15.75691702]
[1728343698893,6.896,145.01,144.98,8.56048155]
[1728343700401,23.8476,145.05,144.98,8.56048155]
[1728343700402,6.8966,145.0,144.98,8.56048155]
[1728343702698,0.12549,145.04,144.98,8.56048155]
[1728343702899,6.897,144.99,144.98,8.56048155]
[1728343706209,6.897,144.99,144.97,0.8188321]
[1728343709209,6.8975,144.98,144.97,0.8188321]
[1728343709714,6.8973,144.99,144.97,0.8188321]
[1728343710078,6.8975,144.98,144.97,0.8188321]
[1728343716013,7.14848,144.98,144.97,0.8188321]
[1728343717291,30.925364,144.98,144.97,0.8188321]
[1728343721923,30.925364,144.98,144.91,7.20010049]
[1728343721924,6.9003,144.92,144.91,7.20010049]
[1728343722096,6.9011,144.91,144.87,6.9026]
[1728343722296,6.9011,144.91,144.87,14.0958742]
[1728343723096,6.9011,144.91,144.88,6.9022]
[1728343723290,6.9004,144.92,144.88,6.9022]
[1728343726420,17.2483,144.95,144.88,6.9022]
[1728343726421,6.9013,144.9,144.88,1.38012447]
[1728343726630,6.9009,144.91,144.87,40.95453213]
[1728343729543,0.12549,144.93,144.87,40.95453213]
[1728343729721,6.9013,144.9,144.87,40.95453213]
[1728343730126,6.9013,144.9,144.87,34.05213213]
[1728343730318,0.12549,144.91,144.87,15.75996518]
[1728343730523,6.9022,144.88,144.87,8.56669098]
[1728343733546,39.4838,144.94,144.87,8.56669098]
[1728343733721,0.12549,144.93,144.87,8.56669098]
[1728343735044,6.9014,144.9,144.87,8.56669098]
[1728343735248,6.901,144.91,144.87,15.46929098]
[1728343735544,6.9007,144.92,144.88,1.38028397]
[1728343735747,6.9007,144.92,144.88,25.53768397]
[1728343736547,6.9007,144.92,144.88,24.1574]
[1728343738252,6.9008,144.91,144.88,17.2554]
[1728343740366,6.9008,144.91,144.87,15.46929098]
[1728343740668,22.2343,144.94,144.87,15.46929098]
[1728343740669,6.9013,144.9,144.87,8.56669098]
[1728343740846,6.9013,144.9,144.87,15.46929098]
[1728343742543,6.901,144.91,144.87,15.46929098]
[1728343749271,0.12549,144.93,144.87,8.56669098]
[1728343749443,6.9013,144.9,144.87,15.46929098]
[1728343753671,17.247,144.96,144.88,64.15790615]
[1728343753854,57.5671,144.98,144.89,17.2543]
[1728343754056,6.8999,144.93,144.89,24.1559]
[1728343754453,17.2451,144.97,144.89,17.2543]
[1728343754784,6.8997,144.94,144.9,6.9013]
[1728343755453,6.8985,144.96,144.92,24.1503]
[1728343755646,6.8985,144.96,144.93,1.37978491]
[1728343756574,6.8981,144.97,144.93,6.8998]
[1728343757148,6.8985,144.96,144.92,24.1504]
[1728343757672,6.8989,144.95,144.92,24.1504]
[1728343757980,33.7691,144.98,144.91,50.0]
[1728343758162,6.8986,144.96,144.92,6.9003]
[1728343758363,6.8989,144.95,144.91,74.1522]
[1728343760156,6.8989,144.95,144.91,24.1522]
[1728343763156,33.7691,144.98,144.91,24.1522]
[1728343763360,6.8993,144.95,144.91,24.1522]
[1728343763765,6.8986,144.96,144.92,8.28013198]
[1728343764568,0.12549,145.0,144.94,6.8993]
[1728343764766,0.12549,145.0,144.95,1.37962194]
[1728343764983,6.898,144.97,144.95,1.37962194]
[1728343765188,6.898,144.97,144.93,24.1493]
[1728343765481,6.898,144.97,144.94,1.37962949]
[1728343766397,6.898,144.97,144.93,74.1493]
[1728343770480,6.898,144.97,144.94,6.8993]
[1728343770785,0.12549,145.0,144.94,6.8993]
[1728343770989,6.8976,144.98,144.95,8.27839337]
[1728343771195,6.8971,144.99,144.95,58.27839337]
[1728343771387,6.8971,144.99,144.95,75.52559337]
[1728343772391,6.8971,144.99,144.95,74.146]
[1728343778094,39.9316,145.02,144.93,12.77764897]
[1728343778095,6.8982,144.97,144.93,56.8997]
[1728343781677,17.2414,145.0,144.93,50.0]
[1728343781982,6.8975,144.98,144.94,8.27846112]
[1728343782306,6.8971,144.99,144.95,58.27805978]
[1728343782677,6.8971,144.99,144.95,51.37945978]
[1728343783006,6.8968,145.0,144.96,8.27779372]
[1728343783806,6.8968,145.0,144.96,6.8984]
[1728343789915,34.4628,145.09,144.93,8.56351238]
[1728343789916,0.12549,145.05,144.98,19.67484897]
[1728343790084,24.027864,145.05,144.97,50.0]
[1728343790289,6.8971,144.99,144.96,8.56146035]
[1728343790495,6.8975,144.98,144.96,8.56146035]
[1728343790697,17.2392,145.02,144.96,8.56146035]
[1728343790908,6.897,144.99,144.96,8.56146035]
[1728343793614,6.8973,144.99,144.95,50.0]
[1728343793911,6.8973,144.99,144.97,1.37945251]
[1728343794615,17.2392,145.02,144.97,1.37945251]
[1728343794821,6.8968,145.0,144.96,24.1444]
[1728343795115,24.027864,145.05,144.96,17.246]
[1728343795282,6.8971,144.99,144.95,56.8985]
[1728343795484,6.8971,144.99,144.95,69.67614897]
[1728343795915,6.8971,144.99,144.96,6.8983]
[1728343796627,6.8967,145.0,144.96,6.8983]
[1728343801427,6.8962,145.01,144.97,88.29931863]
[1728343801639,38.7053,145.06,144.99,69.67464897]
[1728343801806,6.8953,145.03,145.0,1.37901841]
[1728343802205,6.8956,145.02,144.99,30.02004897]
[1728343802430,6.8956,145.02,144.99,17.2424]
[1728343802612,6.8956,145.02,144.99,67.2424]
[1728343806239,6.897,144.99,144.96,32.70462452]
[1728343806427,24.027864,145.05,144.96,8.56132452]
[1728343806625,15.7544,145.01,144.96,8.56132452]
[1728343806941,6.8979,144.97,144.96,8.56132452]
[1728343807742,6.8976,144.98,144.96,8.56132452]
[1728343808140,6.8971,144.99,144.97,1.37944837]
[1728343809623,6.8971,144.99,144.96,8.56132452]
[1728343810544,21.8465,145.01,144.96,8.56132452]
[1728343810725,39.4996,145.05,144.98,12.77764897]
[1728343811053,6.8959,145.02,144.99,1.37907788]
[1728343811429,22.2632,145.05,144.97,50.0]
[1728343811756,6.8973,144.99,144.95,6.8987]
[1728343812452,17.2379,145.03,144.96,50.0]
[1728343812752,6.8968,145.0,144.96,56.8983]
[1728343815552,6.8964,145.01,144.97,8.2772011]
[1728343815726,22.2632,145.05,144.98,50.0]
[1728343815926,22.2632,145.05,144.99,1.37909292]
[1728343815927,6.8959,145.02,144.99,1.37909292]
[1728343816345,22.2632,145.05,144.99,1.37909292]
[1728343816551,22.2632,145.05,144.98,56.8974]
[1728343816552,6.8961,145.01,144.98,56.8974]
[1728343818237,6.8961,145.01,144.98,50.0]
[1728343822865,6.8957,145.02,144.99,1.3791526]
[1728343824264,6.8962,145.01,144.98,50.0]
[1728343827562,6.8962,145.01,144.98,56.8974]
[1728343830040,6.8957,145.02,144.99,1.37913211]
[1728343830235,22.2632,145.05,145.0,62.77764897]
[1728343830236,16.1053,145.05,145.0,62.77764897]
[1728343830438,6.8938,145.06,145.03,6.895]
[1728343830679,6.8935,145.07,145.04,1.3786567]
[1728343831164,6.893,145.08,145.04,8.2731567]
[1728343831374,6.894,145.06,145.02,74.1332]
[1728343831540,22.9746,145.09,144.99,17.242]
[1728343831746,6.8955,145.03,145.0,50.0]
[1728343832380,6.8956,145.02,144.99,17.242]
[1728343832750,17.2345,145.06,145.0,1.37905201]
[1728343833078,6.8952,145.03,145.0,1.37905201]
[1728343834684,6.8947,145.04,145.0,56.8964]
[1728343834853,6.8947,145.04,145.01,1.37902758]
[1728343835376,6.8942,145.05,145.01,8.27492758]
[1728343835573,40.2063,145.09,145.02,50.0]
[1728343835879,22.9746,145.09,145.02,50.0]
[1728343836073,6.8937,145.06,145.02,56.8954]
[1728343836284,6.8937,145.06,145.03,6.8951]